fUSD/lending_fUSD_20240803
["ID","MTS","AMOUNT","RATE_DAILY","PERIOD"]
[333998920,1722672631539,-200.12964714,0.00013759,2]
[333998921,1722672631548,-300.0,0.00013858,2]
[333998922,1722672631557,-9767.1167867,0.00013859,2]
[333998923,1722672631569,-382.31751455,0.00013859,2]
[333998924,1722672631619,-3780.41729676,0.00013859,2]
[333998925,1722672631630,-708.08516281,0.00013859,2]
[333998926,1722672631642,-21059.39578302,0.00013859,2]
[333998927,1722672631651,-339.43,0.00013973,2]
[333998928,1722672631660,-250.0,0.00014703,2]
[333998929,1722672631671,-8661.32413187,0.00014734,2]
[333998930,1722672631682,-6674.23107319,0.00014734,2]
[333998931,1722672631701,-916.58479494,0.00014734,2]
[333998932,1722672631710,-150.0,0.0001477,2]
[333998933,1722672631719,-150.0,0.0001477,2]
[333998934,1722672631729,-141.70674811,0.00014815,2]
[333998935,1722672631740,-8.29325189,0.00014815,2]
[333998936,1722672631749,-150.0,0.00014861,2]
[333998937,1722672631759,-799.92029157,0.00014888,2]
[333998938,1722672631769,-150.0,0.00014907,2]
[333998939,1722672631778,-150.0,0.00014919,2]
[333998940,1722672631787,-150.0,0.00014952,2]
[333998941,1722672631796,-150.0,0.00014998,2]
[333998942,1722672631806,-416.0,0.00015035,2]
[333998943,1722672631815,-150.0,0.00015043,2]
[333998944,1722672631825,-150.0,0.00015068,2]
[333998945,1722672631834,-474.39,0.0001508,2]
[333998946,1722672631844,-150.0,0.00015089,2]
[333998947,1722672631854,-6941.37644942,0.0001512,2]
[333998948,1722672631865,-117.15355058,0.0001512,2]
[333998949,1722672631875,-150.0,0.00015135,2]
[333998950,1722672631885,-150.0,0.0001518,2]
[333998951,1722672631894,-750.93,0.00015183,2]
[333998952,1722672631903,-420.0,0.00015184,2]
[333998953,1722672631912,-150.0,0.00015217,2]
[333998954,1722672631921,-150.0,0.00015226,2]
[333998955,1722672631931,-150.0,0.00015271,2]
[333998956,1722672631940,-153.415,0.00015271,2]
[333998957,1722672631949,-150.0,0.00015317,2]
[333998958,1722672631958,-584.0,0.00015332,2]
[333998959,1722672631967,-1667.86,0.00015341,2]
[333998960,1722672631976,-150.0,0.00015362,2]
[333998961,1722672631985,-150.0,0.00015367,2]
[333998962,1722672631996,-150.0,0.00015408,2]
[333998963,1722672632005,-152.4,0.00015412,2]
[333998964,1722672632014,-150.0,0.00015454,2]
[333998965,1722672632024,-41.47472173,0.00015499,2]
[333998966,1722672632035,-108.52527827,0.00015499,2]
[333998967,1722672632044,-150.0,0.00015516,2]
[333998968,1722672632054,-142.91563211,0.00015545,2]
[333998969,1722672632073,-7.08436789,0.00015545,2]
[333998970,1722672632082,-150.0,0.0001559,2]
[333998971,1722672632092,-200.0,0.000156,5]
[333998972,1722672632101,-150.0,0.00015616,2]
[333998973,1722672632110,-150.0,0.00015616,2]
[333998974,1722672632119,-150.0,0.00015616,2]
[333998975,1722672632128,-150.0,0.00015616,2]
[333998976,1722672632137,-150.0,0.00015636,2]
[333998977,1722672632146,-150.0,0.00015665,2]
[333998978,1722672632155,-150.0,0.00015682,2]
[333998979,1722672632165,-500.0,0.000157,5]
[333998980,1722672632174,-150.0,0.00015727,2]
[333998981,1722672632183,-150.0,0.00015773,2]
[333998982,1722672632191,-325.74371363,0.000158,5]
[333998983,1722672637398,-374.25628637,0.000158,5]
[333998984,1722672637408,-150.0,0.00015814,2]
[333998985,1722672637418,-150.0,0.00015818,2]
[333998986,1722672637428,-150.0,0.00015864,2]
[333998987,1722672637438,-1450.45,0.000159,2]
[333998988,1722672637448,-417.51,0.000159,2]
[333998989,1722672637457,-1000.0,0.000159,5]
[333998990,1722672637467,-150.0,0.0001591,2]
[333998991,1722672637477,-150.0,0.00015955,2]
[333998992,1722672637486,-150.0,0.00015963,2]
[333998993,1722672637496,-150.0,0.00016001,2]
[333998994,1722672637508,-150.0,0.00016046,2]
[333998995,1722672637517,-153.415,0.00016073,2]
[333998996,1722672637527,-150.0,0.00016092,2]
[333998997,1722672637536,-150.0,0.00016113,2]
[333998998,1722672637546,-150.0,0.00016137,2]
[333998999,1722672637555,-150.0,0.00016183,2]
[333999000,1722672637565,-834.45,0.000162,2]
[333999001,1722672637575,-420.52,0.000162,2]
[333999002,1722672637584,-150.0,0.00016229,2]
[333999003,1722672637593,-150.0,0.00016262,2]
[333999004,1722672637602,-150.0,0.00016274,2]
[333999005,1722672637611,-781.58854728,0.0001629,2]
[333999006,1722672637621,-9378.8242442,0.0001629,2]
[333999007,1722672637630,-2097.4382,0.0001629,2]
[333999008,1722672637639,-199.2846,0.0001629,2]
[333999009,1722672637649,-343.7444,0.0001629,2]
[333999010,1722672637659,-263.8874,0.0001629,2]
[333999011,1722672637668,-5890.09719422,0.0001629,2]
[333999012,1722672637680,-1609.90280578,0.0001629,2]
[333999013,1722672637689,-2500.0,0.0001629,2]
[333999014,1722672637699,-182.02421399,0.00016311,2]
[333999015,1722672637709,-150.0,0.00016314,2]
[333999016,1722672637719,-150.0,0.00016314,2]
[333999017,1722672637730,-150.0,0.00016314,2]
[333999019,1722672637741,-530.37,0.00016314,2]
[333999021,1722672637751,-1058.67,0.00016314,2]
[333999023,1722672637762,-150.0,0.0001632,2]
[333999025,1722672637772,-177.35582664,0.00016338,2]
[333999027,1722672637782,-257.3821,0.00016338,2]
[333999030,1722672637791,-627.0822,0.00016338,2]
[333999032,1722672637801,-5446.08233693,0.00016338,2]
[333999048,1722672638947,-4553.91766307,0.00016338,2]
[333999049,1722672638957,-1112.40214539,0.00016358,2]
[333999051,1722672638967,-142.0100914,0.00016365,2]
[333999053,1722672638980,-7.9899086,0.00016365,2]
[333999055,1722672638989,-200.0,0.00016373,2]
[333999057,1722672638999,-303.35364713,0.0001638,3]
[333999059,1722672639011,-575.30635287,0.0001638,3]
[333999062,1722672639025,-210.61829482,0.0001638,2]
[333999064,1722672639038,-974.16207443,0.0001638,2]
[333999067,1722672639055,-2694.66767105,0.0001638,2]
[333999069,1722672639065,-153.54,0.0001638,2]
[333999071,1722672639075,-153.54,0.0001638,2]
[333999073,1722672639085,-153.54,0.0001638,2]
[333999075,1722672639095,-278.67576339,0.00016387,2]
[333999077,1722672639105,-500.0,0.00016389,2]
[333999079,1722672639116,-500.0,0.00016389,2]
[333999081,1722672639125,-500.0,0.00016389,2]
[333999082,1722672639135,-500.0,0.00016389,2]
[333999083,1722672639146,-500.0,0.00016389,2]
[333999084,1722672639156,-500.0,0.00016389,2]
[333999085,1722672639166,-500.0,0.00016389,2]
[333999086,1722672639176,-500.0,0.00016389,2]
[333999087,1722672639186,-365.07675833,0.00016389,2]
[333999088,1722672639197,-500.0,0.00016389,2]
[333999089,1722672639208,-500.0,0.00016389,2]
[333999090,1722672639218,-500.0,0.00016389,2]
[333999091,1722672639229,-400.50764561,0.00016389,2]
[333999092,1722672639239,-250.8167432,0.00016389,2]
[333999093,1722672639251,-249.1832568,0.00016389,2]
[333999094,1722672639261,-500.0,0.00016389,2]
[333999095,1722672639271,-500.0,0.00016389,2]
[333999096,1722672639281,-5655.64646499,0.0001639,4]
[333999097,1722672639325,-34303.21557856,0.0001639,4]
[333999098,1722672639337,-290.95999964,0.0001639,4]
[333999099,1722672639348,-257.82237684,0.0001639,4]
[333999100,1722672639367,-451.95508626,0.0001639,4]
[333999101,1722672639380,-562.57856623,0.0001639,4]
[333999102,1722672639392,-1829.12418851,0.0001639,4]
[333999103,1722672639423,-2333.75534537,0.0001639,4]
[333999104,1722672639439,-6430.39699736,0.0001639,4]
[333999105,1722672639452,-7544.50302701,0.0001639,4]
[333999107,1722672639807,-5000.18777068,0.0001639,4]
[333999108,1722672639827,-657310.16067723,0.0001639,4]
[333999109,1722672639837,-373965.00676908,0.0001639,4]
[333999110,1722672639846,-151.0,0.0001639,2]
[333999111,1722672639856,-151.0,0.0001639,2]
[333999112,1722672639866,-545.922681,0.0001639,2]
[333999113,1722672639875,-162.55561768,0.00016411,2]
[333999114,1722672639885,-238.62524672,0.00016411,2]
[333999115,1722672639894,-153.54,0.00016428,2]
[333999116,1722672639904,-153.54,0.00016428,2]
[333999117,1722672639913,-153.54,0.00016428,2]
[333999118,1722672639922,-153.54,0.00016428,2]
[333999119,1722672639932,-153.54,0.00016428,2]
[333999120,1722672639941,-153.54,0.00016428,2]
[333999121,1722672639950,-153.54,0.00016428,2]
[333999122,1722672639960,-1646234.55674276,0.0001643,2]
[333999123,1722672639969,-1286.7655054,0.00016437,2]
[333999124,1722672639979,-258.77919049,0.00016437,2]
[333999125,1722672639989,-500.0,0.00016437,2]
[333999126,1722672639998,-500.0,0.00016437,2]
[333999127,1722672640008,-500.0,0.00016437,2]
[333999128,1722672640017,-500.0,0.00016437,2]
[333999129,1722672640026,-500.0,0.00016437,2]
[333999130,1722672640035,-537.569115,0.00016437,2]
[333999131,1722672640045,-1647814.14116868,0.00016438,7]
[333999132,1722672640054,-478.17157077,0.00016438,2]
[333999133,1722672640063,-155.16912908,0.00016438,2]
[333999134,1722672640072,-322.63209138,0.00016438,2]
[333999135,1722672640081,-245.2160691,0.00016438,2]
[333999136,1722672640091,-155.0,0.00016438,2]
[333999137,1722672640100,-193.90413335,0.00016438,2]
[333999138,1722672640110,-155.2710098,0.00016438,2]
[333999139,1722672640119,-155.20692967,0.00016438,2]
[333999140,1722672640129,-3068.60047877,0.00016438,2]
[333999141,1722672640138,-411.66433211,0.00016438,2]
[333999142,1722672640147,-10213.33062592,0.00016438,2]
[333999143,1722672640157,-49279.3775067,0.00016438,2]
[333999144,1722672640166,-303.14279647,0.00016438,2]
[333999145,1722672640176,-305.68418442,0.00016438,2]
[333999146,1722672640185,-2564.10143702,0.00016438,2]
[333999147,1722672640195,-1000.0,0.00016438,2]
[333999148,1722672640204,-227.60153513,0.00016438,2]
[333999149,1722672640213,-199.8276828,0.00016438,2]
[333999150,1722672640224,-173.34446994,0.00016438,2]
[333999151,1722672640233,-159.01499355,0.00016438,2]
[333999152,1722672640243,-12892.32241363,0.00016438,2]
[333999153,1722672640252,-257.38017543,0.00016438,2]
[333999154,1722672640261,-435.8927483,0.00016438,2]
[333999155,1722672640271,-500.0,0.00016438,2]
[333999156,1722672640280,-500.0,0.00016438,2]
[333999157,1722672640289,-501.3077618,0.00016438,2]
[333999158,1722672640298,-500.0,0.00016438,2]
[333999159,1722672640308,-207.48932296,0.00016438,2]
[333999160,1722672640317,-500.0,0.00016438,2]
[333999161,1722672640326,-500.0,0.00016438,2]
[333999162,1722672640336,-510.39044608,0.00016438,2]
[333999163,1722672640346,-500.0,0.00016438,2]
[333999164,1722672640356,-500.0,0.00016438,2]
[333999165,1722672640365,-500.0,0.00016438,2]
[333999166,1722672640374,-326.99795717,0.00016438,2]
[333999167,1722672640383,-500.0,0.00016438,2]
[333999168,1722672640728,-2000.0,0.00016438,2]
[333999169,1722672640755,-501.15528271,0.00016438,2]
[333999170,1722672640764,-500.0,0.00016438,2]
[333999171,1722672640774,-500.0,0.00016438,2]
[333999172,1722672640783,-500.0,0.00016438,2]
[333999173,1722672640792,-501.44720136,0.00016438,2]
[333999174,1722672640802,-500.0,0.00016438,2]
[333999175,1722672640811,-500.0,0.00016438,2]
[333999176,1722672640820,-500.0,0.00016438,2]
[333999177,1722672640830,-500.0,0.00016438,2]
[333999178,1722672640839,-537.74,0.00016438,2]
[333999179,1722672640848,-500.0,0.00016438,2]
[333999180,1722672640857,-500.0,0.00016438,2]
[333999181,1722672640867,-500.0,0.00016438,2]
[333999182,1722672640877,-500.0,0.00016438,2]
[333999183,1722672640886,-907.58,0.00016438,2]
[333999184,1722672640895,-500.0,0.00016438,2]
[333999185,1722672640904,-261.57008568,0.00016438,2]
[333999186,1722672640914,-500.0,0.00016438,2]
[333999187,1722672640923,-500.0,0.00016438,2]
[333999188,1722672640932,-500.0,0.00016438,2]
[333999189,1722672640942,-211.59419476,0.00016438,2]
[333999190,1722672640951,-508.31236959,0.00016438,2]
[333999191,1722672640960,-500.0,0.00016438,2]
[333999192,1722672640970,-500.0,0.00016438,2]
[333999193,1722672640979,-560.39,0.00016438,2]
[333999194,1722672640989,-500.0,0.00016438,2]
[333999195,1722672640998,-500.0,0.00016438,2]
[333999196,1722672641008,-500.0,0.00016438,2]
[333999197,1722672641018,-550.32,0.00016438,2]
[333999198,1722672641028,-500.0,0.00016438,2]
[333999199,1722672641037,-548.45,0.00016438,2]
[333999201,1722672641047,-500.0,0.00016438,2]
[333999203,1722672641056,-500.0,0.00016438,2]
[333999205,1722672641066,-500.0,0.00016438,2]
[333999207,1722672641075,-500.0,0.00016438,2]
[333999209,1722672641085,-240.82712017,0.00016438,2]
[333999211,1722672641094,-500.0,0.00016438,2]
[333999213,1722672641104,-599.16,0.00016438,2]
[333999215,1722672641114,-500.0,0.00016438,2]
[333999217,1722672641123,-500.0,0.00016438,2]
[333999219,1722672641133,-500.0,0.00016438,2]
[333999220,1722672641142,-500.0,0.00016438,2]
[333999223,1722672641152,-500.0,0.00016438,2]
[333999225,1722672641161,-500.0,0.00016438,2]
[333999227,1722672641170,-500.0,0.00016438,2]
[333999229,1722672641180,-500.0,0.00016438,2]
[333999231,1722672641189,-500.0,0.00016438,2]
[333999233,1722672641198,-500.0,0.00016438,2]
[333999235,1722672641208,-528.88,0.00016438,2]
[333999237,1722672641217,-561.29,0.00016438,2]
[333999239,1722672641227,-519.50327183,0.00016438,2]
[333999241,1722672641236,-500.0,0.00016438,2]
[333999243,1722672641245,-500.0,0.00016438,2]
[333999245,1722672641256,-500.0,0.00016438,2]
[333999247,1722672641267,-500.0,0.00016438,2]
[333999249,1722672641277,-500.0,0.00016438,2]
[333999251,1722672641288,-500.0,0.00016438,2]
[333999253,1722672641299,-500.0,0.00016438,2]
[333999255,1722672641308,-500.0,0.00016438,2]
[333999257,1722672641318,-502.9336117,0.00016438,2]
[333999258,1722672641327,-500.0,0.00016438,2]
[333999260,1722672641336,-500.0,0.00016438,2]
[333999262,1722672641346,-500.0,0.00016438,2]
[333999264,1722672641355,-500.0,0.00016438,2]
[333999266,1722672641365,-500.0,0.00016438,2]
[333999268,1722672641374,-500.0,0.00016438,2]
[333999269,1722672641383,-706.98,0.00016438,2]
[333999271,1722672641392,-500.0,0.00016438,2]
[333999273,1722672641402,-500.0,0.00016438,2]
[333999274,1722672641411,-500.0,0.00016438,2]
[333999276,1722672641421,-500.0,0.00016438,2]
[333999278,1722672641431,-500.0,0.00016438,2]
[333999280,1722672641441,-500.0,0.00016438,2]
[333999282,1722672641450,-500.0,0.00016438,2]
[333999284,1722672641459,-696.17,0.00016438,2]
[333999286,1722672641468,-500.0,0.00016438,2]
[333999288,1722672641479,-500.0,0.00016438,2]
[333999290,1722672641489,-500.0,0.00016438,2]
[333999292,1722672641507,-500.0,0.00016438,2]
[333999294,1722672641516,-500.0,0.00016438,2]
[333999296,1722672641525,-500.0,0.00016438,2]
[333999298,1722672641535,-500.0,0.00016438,2]
[333999300,1722672641545,-500.0,0.00016438,2]
[333999302,1722672641556,-500.0,0.00016438,2]
[333999304,1722672641565,-500.0,0.00016438,2]
[333999306,1722672641576,-500.0,0.00016438,2]
[333999308,1722672641585,-500.0,0.00016438,2]
[333999309,1722672641594,-500.0,0.00016438,2]
[333999312,1722672641605,-500.0,0.00016438,2]
[333999314,1722672641616,-500.0,0.00016438,2]
[333999316,1722672641628,-500.0,0.00016438,2]
[333999318,1722672641638,-500.0,0.00016438,2]
[333999320,1722672641647,-500.0,0.00016438,2]
[333999322,1722672641657,-508.13,0.00016438,2]
[333999323,1722672641667,-500.0,0.00016438,2]
[333999325,1722672641677,-500.0,0.00016438,2]
[333999327,1722672641686,-924.44,0.00016438,2]
[333999329,1722672641696,-748.67,0.00016438,2]
[333999331,1722672641706,-500.0,0.00016438,2]
[333999333,1722672641715,-610.71,0.00016438,2]
[333999334,1722672641725,-500.0,0.00016438,2]
[333999336,1722672641736,-500.0,0.00016438,2]
[333999338,1722672641745,-616.11,0.00016438,2]
[333999340,1722672641756,-556.83396579,0.00016438,2]
[333999342,1722672641767,-500.0,0.00016438,2]
[333999344,1722672641777,-500.0,0.00016438,2]
[333999347,1722672641789,-500.0,0.00016438,2]
[333999349,1722672641798,-500.0,0.00016438,2]
[333999350,1722672641807,-500.0,0.00016438,2]
[333999353,1722672641819,-500.0,0.00016438,2]
[333999355,1722672641828,-500.0,0.00016438,2]
[333999356,1722672641838,-500.0,0.00016438,2]
[333999359,1722672641848,-500.0,0.00016438,2]
[333999360,1722672641858,-500.0,0.00016438,2]
[333999362,1722672641868,-526.29,0.00016438,2]
[333999364,1722672641877,-804.34,0.00016438,2]
[333999366,1722672641887,-500.0,0.00016438,2]
[333999369,1722672641896,-500.0,0.00016438,2]
[333999370,1722672641905,-500.0,0.00016438,2]
[333999372,1722672641915,-500.0,0.00016438,2]
[333999374,1722672641924,-500.0,0.00016438,2]
[333999376,1722672641934,-500.0,0.00016438,2]
[333999378,1722672641943,-500.0,0.00016438,2]
[333999380,1722672641954,-500.0,0.00016438,2]
[333999382,1722672641964,-500.0,0.00016438,2]
[333999384,1722672641974,-500.0,0.00016438,2]
[333999386,1722672641983,-590.71,0.00016438,2]
[333999388,1722672641992,-502.38241008,0.00016438,2]
[333999390,1722672642002,-500.0,0.00016438,2]
[333999392,1722672642011,-572.46,0.00016438,2]
[333999394,1722672642020,-500.0,0.00016438,2]
[333999396,1722672642029,-500.0,0.00016438,2]
[333999398,1722672642039,-500.0,0.00016438,2]
[333999400,1722672642048,-500.0,0.00016438,2]
[333999402,1722672642059,-500.0,0.00016438,2]
[333999404,1722672642072,-562.63374562,0.00016438,2]
[333999406,1722672642081,-500.0,0.00016438,2]
[333999408,1722672642092,-500.0,0.00016438,2]
[333999410,1722672642101,-500.0,0.00016438,2]
[333999411,1722672642111,-500.0,0.00016438,2]
[333999413,1722672642122,-1146.83,0.00016438,2]
[333999415,1722672642132,-500.0,0.00016438,2]
[333999417,1722672642141,-951.73,0.00016438,2]
[333999419,1722672642152,-500.0,0.00016438,2]
[333999421,1722672642161,-888.24,0.00016438,2]
[333999423,1722672642171,-500.0,0.00016438,2]
[333999425,1722672642180,-1734.7,0.00016438,2]
[333999427,1722672642189,-774.79,0.00016438,2]
[333999429,1722672642199,-500.0,0.00016438,2]
[333999430,1722672642208,-500.0,0.00016438,2]
[333999432,1722672642217,-500.0,0.00016438,2]
[333999434,1722672642226,-500.0,0.00016438,2]
[333999436,1722672642235,-500.0,0.00016438,2]
[333999438,1722672642244,-500.0,0.00016438,2]
[333999439,1722672642254,-500.0,0.00016438,2]
[333999441,1722672642263,-500.0,0.00016438,2]
[333999444,1722672642272,-151.0,0.00016438,2]
[333999446,1722672642282,-500.0,0.00016438,2]
[333999448,1722672642291,-151.0,0.00016438,2]
[333999450,1722672642300,-500.0,0.00016438,2]
[333999452,1722672642310,-151.0,0.00016438,2]
[333999454,1722672642321,-151.0,0.00016438,2]
[333999456,1722672642332,-151.0,0.00016438,2]
[333999457,1722672642342,-151.0,0.00016438,2]
[333999459,1722672642352,-151.0,0.00016438,2]
[333999461,1722672642362,-500.0,0.00016438,2]
[333999463,1722672642372,-682.31,0.00016438,2]
[333999465,1722672642381,-503.07357327,0.00016438,2]
[333999467,1722672642391,-500.0,0.00016438,2]
[333999469,1722672642400,-500.0,0.00016438,2]
[333999471,1722672642409,-500.0,0.00016438,2]
[333999473,1722672642418,-500.0,0.00016438,2]
[333999475,1722672642428,-500.0,0.00016438,2]
[333999477,1722672642438,-500.0,0.00016438,2]
[333999479,1722672642447,-151.0,0.00016438,2]
[333999481,1722672642457,-151.0,0.00016438,2]
[333999483,1722672642466,-500.0,0.00016438,2]
[333999485,1722672642476,-500.0,0.00016438,2]
[333999487,1722672642485,-151.0,0.00016438,2]
[333999489,1722672642495,-151.0,0.00016438,2]
[333999491,1722672642508,-500.0,0.00016438,2]
[333999493,1722672642517,-151.0,0.00016438,2]
[333999495,1722672642526,-151.0,0.00016438,2]
[333999497,1722672642536,-151.0,0.00016438,2]
[333999499,1722672642547,-500.0,0.00016438,2]
[333999501,1722672642557,-153.278923,0.00016438,2]
[333999503,1722672642566,-500.0,0.00016438,2]
[333999505,1722672642578,-648.41,0.00016438,2]
[333999507,1722672642588,-500.0,0.00016438,2]
[333999509,1722672642598,-795.59,0.00016438,2]
[333999511,1722672642607,-500.0,0.00016438,2]
[333999513,1722672642616,-500.0,0.00016438,2]
[333999515,1722672642626,-500.0,0.00016438,2]
[333999516,1722672642635,-500.0,0.00016438,2]
[333999518,1722672642645,-723.82,0.00016438,2]
[333999520,1722672642655,-500.0,0.00016438,2]
[333999522,1722672642665,-500.0,0.00016438,2]
[333999524,1722672642676,-500.0,0.00016438,2]
[333999526,1722672642686,-500.0,0.00016438,2]
[333999528,1722672642695,-519.21626713,0.00016438,2]
[333999530,1722672642705,-500.0,0.00016438,2]
[333999532,1722672642714,-500.0,0.00016438,2]
[333999534,1722672642724,-500.0,0.00016438,2]
[333999536,1722672642733,-500.0,0.00016438,2]
[333999538,1722672642744,-1168.92,0.00016438,2]
[333999540,1722672642753,-500.0,0.00016438,2]
[333999542,1722672642762,-151.0,0.00016438,2]
[333999544,1722672642772,-151.0,0.00016438,2]
[333999545,1722672642781,-151.0,0.00016438,2]
[333999546,1722672642790,-151.0,0.00016438,2]
[333999547,1722672642800,-819.92,0.00016438,2]
[333999548,1722672642810,-151.0,0.00016438,2]
[333999549,1722672642820,-500.0,0.00016438,2]
[333999550,1722672642829,-151.0,0.00016438,2]
[333999551,1722672642838,-152.368121,0.00016438,2]
[333999552,1722672642849,-500.0,0.00016438,2]
[333999553,1722672642859,-500.0,0.00016438,2]
[333999554,1722672642868,-508.94,0.00016438,2]
[333999555,1722672642877,-582.03,0.00016438,2]
[333999557,1722672642886,-500.0,0.00016438,2]
[333999559,1722672642896,-500.0,0.00016438,2]
[333999561,1722672642905,-618.32,0.00016438,2]
[333999563,1722672642914,-311.18769075,0.00016438,2]
[333999565,1722672642925,-500.0,0.00016438,2]
[333999567,1722672642935,-1159.6,0.00016438,2]
[333999569,1722672642944,-500.0,0.00016438,2]
[333999572,1722672642953,-500.0,0.00016438,2]
[333999574,1722672642962,-500.0,0.00016438,2]
[333999577,1722672642971,-500.0,0.00016438,2]
[333999580,1722672642981,-500.0,0.00016438,2]
[333999583,1722672642990,-500.0,0.00016438,2]
[333999586,1722672642999,-500.0,0.00016438,2]
[333999588,1722672643009,-577.66,0.00016438,2]
[333999590,1722672643018,-500.0,0.00016438,2]
[333999592,1722672643026,-500.0,0.00016438,2]
[333999594,1722672643035,-500.0,0.00016438,2]
[333999595,1722672643044,-549.41,0.00016438,2]
[333999597,1722672643053,-500.0,0.00016438,2]
[333999599,1722672643063,-500.0,0.00016438,2]
[333999601,1722672643072,-500.0,0.00016438,2]
[333999604,1722672643083,-530.35,0.00016438,2]
[333999606,1722672643092,-500.0,0.00016438,2]
[333999608,1722672643102,-925.21,0.00016438,2]
[333999610,1722672643111,-525.77,0.00016438,2]
[333999612,1722672643120,-500.0,0.00016438,2]
[333999614,1722672643129,-500.0,0.00016438,2]
[333999624,1722672643221,-500.0,0.00016438,2]
[333999626,1722672643230,-500.0,0.00016438,2]
[333999628,1722672643239,-500.0,0.00016438,2]
[333999631,1722672643250,-500.0,0.00016438,2]
[333999633,1722672643259,-500.0,0.00016438,2]
[333999634,1722672643268,-904.56,0.00016438,2]
[333999636,1722672643277,-500.0,0.00016438,2]
[333999638,1722672643287,-500.0,0.00016438,2]
[333999640,1722672643295,-500.0,0.00016438,2]
[333999642,1722672643304,-523.19560553,0.00016438,2]
[333999644,1722672643313,-501.53,0.00016438,2]
[333999646,1722672643323,-500.0,0.00016438,2]
[333999648,1722672643332,-500.0,0.00016438,2]
[333999650,1722672643341,-500.0,0.00016438,2]
[333999652,1722672643350,-509.93099446,0.00016438,2]
[333999654,1722672643359,-622.55,0.00016438,2]
[333999656,1722672643369,-500.0,0.00016438,2]
[333999658,1722672643378,-540.33,0.00016438,2]
[333999660,1722672643387,-622.40328764,0.00016438,2]
[333999662,1722672643397,-500.0,0.00016438,2]
[333999664,1722672643406,-500.0,0.00016438,2]
[333999666,1722672643415,-602.82,0.00016438,2]
[333999668,1722672643424,-644.95,0.00016438,2]
[333999670,1722672643435,-503.96,0.00016438,2]
[333999672,1722672643444,-500.0,0.00016438,2]
[333999674,1722672643454,-500.0,0.00016438,2]
[333999676,1722672643463,-151.0,0.00016438,2]
[333999678,1722672643472,-151.0,0.00016438,2]
[333999680,1722672643482,-272.323883,0.00016438,2]
[333999682,1722672643491,-825.13,0.00016438,2]
[333999684,1722672643502,-500.0,0.00016438,2]
[333999686,1722672643511,-500.0,0.00016438,2]
[333999688,1722672643520,-500.0,0.00016438,2]
[333999690,1722672643528,-500.0,0.00016438,2]
[333999692,1722672643538,-500.0,0.00016438,2]
[333999694,1722672643548,-500.0,0.00016438,2]
[333999696,1722672643557,-500.0,0.00016438,2]
[333999698,1722672643566,-1519.4,0.00016438,2]
[333999700,1722672643575,-500.0,0.00016438,2]
[333999702,1722672643584,-500.0,0.00016438,2]
[333999703,1722672643595,-502.22203262,0.00016438,2]
[333999705,1722672643604,-500.0,0.00016438,2]
[333999707,1722672643613,-500.0,0.00016438,2]
[333999709,1722672643622,-500.0,0.00016438,2]
[333999711,1722672643631,-500.0,0.00016438,2]
[333999713,1722672643640,-500.0,0.00016438,2]